Cogmind - Beta 16 @@@ ROGUE MODE // 2025.11.09 @ 03:33:39 Player: Demo Result: Destroyed by S-27 Virus with Autogun Performance ------------- Evolutions (4) 2000 Regions Visited (6) 1200 Robots Destroyed (72) 360 Value Destroyed (2332) 2332 Prototype IDs (4) 80 Alien Tech Used (0) 0 Bonus (1021) 1021 TOTAL SCORE: 6993 Bonus ------- Follower Combat Kills 290 Registered with UFD 300 Met Optimus in HQ 500 Friendly Fire -69 Cogmind --------- Core Integrity 0/850 Matter 222/300 Energy 100/100 System Corruption 2% Temperature Cool (1) Movement Flying (40) Location -6/Factory Parts ------- > --- POWER (2) -------- (None) > --- PROPULSION (3) --- Nuclear Pulse Thruster > --- UTILITY (8) ------ Improved Signal Interpreter Surveybot 17 Chip Improved Salvage Targeting Computer Advanced Targeting Computer Hacking Suite Makeshift System Shield > --- WEAPON (2) ------- Improved Datajack Katana > --- INVENTORY (5) ---- High-capacity Matter Pod (177) System Shield Companion Sword DRS Beacon (Ready) Botcube Peak State ------------ > --- POWER ------------ Light Angular Momentum Engine Light Antimatter Reactor > --- PROPULSION ------- Wheel Compact Wheel > --- UTILITY ---------- Advanced Heat Sink Humpback IFF Parser Improved Shield Generator Hacking Suite System Shield Makeshift System Shield > --- WEAPON ----------- Improved Lightning Gun Cooled Pulse Rifle > --- INVENTORY -------- Compact Wheel Armored Wheel Armored Huge Wheel Power Amplifier Heat Sink Advanced Heat Sink High-capacity Storage Unit High-capacity Matter Pod High-capacity Matter Pod Gravity Neutralizer Deep Structural Scanner Surveybot 17 Chip Improved Targeting Computer Energy Filter System Shield Heavy Riot Gun Spread Laser Subdweller Beam Cannon Heavy Plasma Cannon Grenade Launcher Mini Grenade Launcher Improved Datajack Plasma Cutter CPS Tube CPS Tube Multitool Flamer Enhanced Flamer Companion Sword DRS Beacon Botcube [Rating: 61] Favorites ----------- Power Subdweller Power Source Engine Subdweller Power Source Power Core Micro Nuclear Core Reactor Light Antimatter Reactor Propulsion Wheel Treads Light Treads Wheel Wheel Flight Unit Nuclear Pulse Thruster Utility Humpback Device Advanced Heat Sink Storage Humpback Processor Advanced Targeting Computer Hackware Makeshift System Shield Protection Medium Armor Plating Weapon Subdweller Beam Cannon Energy Gun Cooled Pulse Rifle Energy Cannon Subdweller Beam Cannon Ballistic Gun Subdweller Machine Gun Launcher Mini Grenade Launcher Special Weapon Multitool Slashing Weapon Companion Sword Piercing Weapon Makeshift Spear Special Melee Weapon Improved Datajack Build | -11 -10 -10 -10 -9 -9 -6 ------- Run | Yrd Mat Min Sub Rec Scr Fac Slots Evolved 8 | . . . . . . 8 Power 1 | . . . . . . 1 Propulsion 1 | . . . . . . 1 Utility 6 | . . . . . . 6 Weapon . | . . . . . . . Parts Attached 73 | 2 . . 9 1 3 58 Power 11 | . . . 1 . 1 9 Engine 7 | . . . 1 . 1 5 Core 3 | . . . . . . 3 Reactor 1 | . . . . . . 1 Propulsion 19 | 2 . . 3 . 2 12 Treads 2 | 2 . . . . . . Leg . | . . . . . . . Wheel 16 | . . . 3 . 2 11 Hover . | . . . . . . . Flight 1 | . . . . . . 1 Utility 25 | . . . 1 . . 24 Device 11 | . . . . . . 11 Storage 3 | . . . 1 . . 2 Processor 5 | . . . . . . 5 Hackware 4 | . . . . . . 4 Protection 2 | . . . . . . 2 Artifact . | . . . . . . . Weapon 18 | . . . 4 1 . 13 Energy Gun 5 | . . . . . . 5 Energy Cannon 1 | . . . 1 . . . Ballistic Gun 5 | . . . 1 1 . 3 Ballistic Cannon . | . . . . . . . Launcher 2 | . . . 1 . . 1 Special Weapon 1 | . . . . . . 1 Impact Weapon . | . . . . . . . Slashing Weapon 2 | . . . . . . 2 Piercing Weapon 1 | . . . 1 . . . Special Melee Weapon 1 | . . . . . . 1 Unidentified Prototypes 4 | . . . . . . 4 Parts Lost 40 | . . . . . . 40 Power 7 | . . . . . . 7 Propulsion 11 | . . . . . . 11 Utility 13 | . . . . . . 13 Weapon 9 | . . . . . . 9 Highest Loss Streak 10 | . . . . . . 10 To Critical Strikes . | . . . . . . . Average Backups 21 | . . 1 13 24 23 26 Power . | . . . 1 2 1 . Propulsion 3 | . . . 3 6 3 3 Utility 7 | . . . 2 5 8 10 Weapon 7 | . . 1 6 9 8 8 Tool/Special . | . . . . . . . Unused Backups 30 | . . . . . 11 19 Power 1 | . . . . . 1 . Propulsion 3 | . . . . . 2 1 Utility 10 | . . . . . 5 5 Weapon 11 | . . . . . 2 9 Tool/Special 5 | . . . . . 1 4 Average Slot Usage (%) 77 | . 28 28 77 85 81 79 Engine 10 | . . . 12 14 14 6 Treads 3 | . 28 28 11 . . . Wheel 21 | . . . 16 28 28 15 Device 4 | . . . . . . 13 Storage 10 | . . . 11 14 13 5 Processor 1 | . . . . . . 4 Hackware 3 | . . . . . . 10 Protection 1 | . . . . . . 4 Energy Gun 1 | . . . . . . 6 Energy Cannon 8 | . . . 11 14 12 2 Ballistic Gun 8 | . . . 11 13 12 2 Peak Build Rating 61 | 2 2 2 18 18 23 61 Average Rating 25 | 1 2 2 14 17 17 49 On Entrance 9 | . 2 2 2 18 18 23 Avg Prop Armor Cover (%) 29 | 39 41 41 21 4 4 . Naked Turns . | . . . . . . . Heaviest Build 259 | . . . 216 217 217 259 Greatest Support 44 | 3 3 3 40 40 20 44 Greatest Overweight (x) 11 | . . . 10 10 10 11 Average Overweight (x) 6 | . . . 5 7 8 5 Largest Inventory Capacity 35 | 5 5 5 35 35 35 35 Average Capacity 31 | 5 5 5 30 35 33 32 Most Carried 35 | . 1 1 27 29 35 35 Average Carried 25 | . . 1 16 28 27 29 Final Capacity 35 | 5 5 5 35 35 35 5 Final Carried 35 | . 1 1 26 29 35 5 Class Distribution -------------------- 49% | Commander-Mutant 39% | Hauler-Mutant 8% | Mutant Dominant Class ---------------- Mutant | -10/Materials Mutant | -10/Mines Hauler-Mutant | -10/Subcaves Commander-Mutant | -9/Recycling Commander-Mutant | -9/Scraptown Hauler-Mutant | -6/Factory Resources | -11 -10 -10 -10 -9 -9 -6 ----------- Run | Yrd Mat Min Sub Rec Scr Fac Matter Collected 2392 | 103 . 25 406 83 443 1332 Remotely 20 | . . . . . . 20 Salvage Created 2839 | . . . 99 149 . 2591 Parts 132 | . . . 15 3 . 114 Haulers Intercepted . | . . . . . . . Recyclers Shooed 7 | . . . . . . 7 Parts Field Recycled . | . . . . . . . Retrieved Matter . | . . . . . . . Parts Self-Destructed 13 | . . . 13 . . . Prevented . | . . . . . . . Parts Restored . | . . . . . . . Kills | -11 -10 -10 -10 -9 -9 -6 ------- Run | Yrd Mat Min Sub Rec Scr Fac Combat Hostiles Destroyed 43 | . . . 6 5 . 32 Melee 3 | . . . 1 . . 2 Guns 11 | . . . . . . 11 Cannons 1 | . . . . . . 1 AOE 28 | . . . 5 5 . 18 Classes Destroyed 14 | . . . 4 4 . 6 Worker 8 | . . . . 1 . 7 Builder 5 | . . . . . . 5 Tunneler 4 | . . . . . . 4 Recycler 8 | . . . . . . 8 Mechanic 1 | . . . . . . 1 Operator 1 | . . . . . . 1 Turret 1 | . . . 1 . . . Swarmer 7 | . . . 4 . . 3 Grunt 25 | . . . . 3 . 22 Sentry 1 | . . . . . . 1 Hunter 5 | . . . . 1 . 4 Programmer 3 | . . . . 1 . 2 Subdweller 2 | . . . 2 . . . Zionite 1 | . . . 1 . . . Best Kill Streak 9 | . . . 5 6 . 9 Combat Bots Only 6 | . . . 4 5 . 6 Max Kills in Single Turn 4 | . . . 4 2 . 4 Gunslinging 1 | . . . . . . 1 Exploded 4 | . . . 4 2 . 3 Melee 1 | . . . 1 . . 1 Uniques/NPCs Destroyed . | . . . . . . . Combat | -11 -10 -10 -10 -9 -9 -6 -------- Run | Yrd Mat Min Sub Rec Scr Fac Hostile Shots Fired 470 | . 12 11 39 16 . 392 Missed 162 | . 6 4 16 7 . 129 Hits 308 | . 6 7 23 9 . 263 Projectile 308 | . 6 7 23 9 . 263 AOE 1 | . . . . . . 1 Critical Strikes 8 | . . . . . . 8 Damage Taken 4414 | . 54 66 148 114 . 4032 Core 906 | . . 14 21 15 . 856 Absorbed by Shields 78 | . . . . . . 78 Core Remaining (%) 90 | 100 . . . . 80 . Volleys Fired 133 | . . . 26 4 . 103 Largest 2 | . . . 2 2 . 2 Hottest 155 | . . . 110 110 . 155 Shots Fired 216 | . . . 43 6 . 167 Gun 153 | . . . 15 . . 138 Cannon 23 | . . . 17 2 . 4 Launcher 40 | . . . 11 4 . 25 Special . | . . . . . . . Kinetic 75 | . . . 15 . . 60 Thermal 69 | . . . 17 2 . 50 Explosive 40 | . . . 11 4 . 25 Electromagnetic 32 | . . . . . . 32 Robot Hit Streak 14 | . . . 2 4 . 14 Robot Miss Streak 3 | . . . 2 1 . 3 Penetration Max 1 | . . . . . . 1 Secondary Targets 1 | . . . . . . 1 Max Gunslinging Chain 1 | . . . . . . 1 Shots Hit Robots 140 | . . . 9 5 . 126 Core Hits 142 | . . . 8 9 . 125 Critical Kills 1 | . . . . . . 1 Critical Parts Destroyed 1 | . . . . . . 1 Critical Strikes 5 | . . . . . . 5 Burn 2 | . . . . . . 2 Destroy 2 | . . . . . . 2 Corrupt 1 | . . . . . . 1 Melee Attacks 31 | . . . 13 . . 18 Impact . | . . . . . . . Slashing 18 | . . . . . . 18 Piercing 13 | . . . 13 . . . Sneak Attacks 4 | . . . . . . 4 Combat Hostiles . | . . . . . . . Follow-up Attacks . | . . . . . . . Damage Inflicted 7427 | . . . 558 350 . 6519 Guns 2167 | . . . 23 . . 2144 Cannons 199 | . . . 52 33 . 114 Explosions 4313 | . . . 323 317 . 3673 Melee 748 | . . . 160 . . 588 Ramming . | . . . . . . . Kinetic 980 | . . . 23 . . 957 Thermal 967 | . . . 52 33 . 882 Explosive 4137 | . . . 323 317 . 3497 Electromagnetic 595 | . . . . . . 595 Impact . | . . . . . . . Slashing 588 | . . . . . . 588 Piercing 160 | . . . 160 . . . Highest Corruption 2 | . . . . . . 2 Average Corruption 1 | . . . . . . 1 Corruption Purged . | . . . . . . . Corruption Blocked . | . . . . . . . Effects 7 | . . . . . . 7 Message Errors 1 | . . . . . . 1 Energy Discharges 4 | . . . . . . 4 Misfires 1 | . . . . . . 1 Weapon Failures 1 | . . . . . . 1 Overload Shots 1 | . . . . . . 1 Overflow Damage 331 | . . . 21 36 . 274 Projectiles . | . . . . . . . Explosions 244 | . . . 21 36 . 187 Melee 87 | . . . . . . 87 Knockbacks . | . . . . . . . Impact . | . . . . . . . Kinetic . | . . . . . . . Secondary . | . . . . . . . Self-Inflicted Damage 111 | . . . . . . 111 Shots 3 | . . . . . . 3 Rammed . | . . . . . . . Targets Rammed . | . . . . . . . Kicked . | . . . . . . . Crushed . | . . . . . . . Highest Temperature 118 | . . . 36 66 . 118 Average Temperature 26 | . . . 15 36 . 34 Received Heat Transfer 1054 | . 12 18 96 12 . 916 Siege Activations . | . . . . . . . Martial Activations . | . . . . . . . Shielding Activations . | . . . . . . . Robots Disrupted . | . . . . . . . Combat Hostiles . | . . . . . . . Robots Corrupted 1 | . . . . . . 1 Combat Hostiles . | . . . . . . . Parts Fried 5 | . . . . . . 5 Impact Corruptions . | . . . . . . . Robots Melted . | . . . . . . . Combat Hostiles . | . . . . . . . Parts Melted 3 | . . . . . . 3 Heat Transferred 1778 | . . . 74 37 . 1667 Parts Sabotaged . | . . . . . . . Parts Stolen . | . . . . . . . Parts Stripped . | . . . . . . . Power Chain Reactions 2 | . . . . . . 2 Alert | -11 -10 -10 -10 -9 -9 -6 ------- Run | Yrd Mat Min Sub Rec Scr Fac Maximum Alert Level 1 | . . . . . . 1 Low Security (%) 51 | 100 100 100 . 100 . 36 Level 1 48 | . . . . . . 63 Level 2 . | . . . . . . . Level 3 . | . . . . . . . Level 4 . | . . . . . . . Level 5 . | . . . . . . . High Security . | . . . . . . . Max Security . | . . . . . . . Peak Influence 375 | . . 91 . 153 . 375 Initial 60 | . . . . 60 . . Average 161 | . . 31 . 83 . 195 Influence Increases 1864 | . . 165 182 123 . 1394 Destroy 0b10 Robot/C 1060 | . . 100 160 100 . 700 Destroy 0b10 Robot/NC 140 | . . . . 5 . 135 Destroy Leader 172 | . . 20 10 . . 142 Allied During Kill 83 | . . 15 12 . . 56 Successful Hack 14 | . . . . . . 14 Disable Machine 165 | . . . . . . 165 Destroy Structure 110 | . . . . 18 . 92 Lose Combat Pursuer 120 | . . 30 . . . 90 Influence Decreases 1542 | . . 165 56 226 23 1072 Entered New Map 89 | . . . . 66 23 . Time Decay 875 | . . 125 36 140 . 574 Lost Part 400 | . . . . . . 400 Lost Ally 178 | . . 40 20 20 . 98 Squads Dispatched 17 | . 1 . . . . 16 Investigation 6 | . . . . . . 6 Extermination 4 | . . . . . . 4 Reinforcement 7 | . 1 . . . . 6 Assault . | . . . . . . . Garrison . | . . . . . . . Intercept . | . . . . . . . Searches Triggered . | . . . . . . . Construction Impeded 3 | . . . . . . 3 Haulers Reinforced 1 | . . . . . . 1 Active Scanning Responses . | . . . . . . . Cargo Convoy Interrupts . | . . . . . . . Stealth | -11 -10 -10 -10 -9 -9 -6 --------- Run | Yrd Mat Min Sub Rec Scr Fac Distress Signals 3 | . . . . . . 3 Communications Jammed . | . . . . . . . Distress Signals . | . . . . . . . Times Spotted 84 | . 10 7 11 6 . 50 Peak Tracking Total 9 | . 9 3 6 5 . 8 Tactical Retreats 3 | . . 1 . . . 2 Traps | -11 -10 -10 -10 -9 -9 -6 ------- Run | Yrd Mat Min Sub Rec Scr Fac Traps Triggered . | . . . . . . . Indirectly . | . . . . . . . Trap Hack Attempts . | . . . . . . . Triggered . | . . . . . . . Disarmed . | . . . . . . . Reprogrammed . | . . . . . . . Reused . | . . . . . . . Traps Extracted . | . . . . . . . Installed . | . . . . . . . Triggered . | . . . . . . . Machines | -11 -10 -10 -10 -9 -9 -6 ---------- Run | Yrd Mat Min Sub Rec Scr Fac Machines Disabled 14 | . . . 3 . . 11 Max in Single Turn 7 | . . . 2 . . 7 Machines Repaired . | . . . . . . . Machines Dismantled . | . . . . . . . Machines Sabotaged . | . . . . . . . Overloaded Fab Kills . | . . . . . . . Hacking | -11 -10 -10 -10 -9 -9 -6 --------- Run | Yrd Mat Min Sub Rec Scr Fac Machines Accessed 11 | . . . . . 4 7 Terminals 1 | . . . . . . 1 Fabricators . | . . . . . . . Repair Stations . | . . . . . . . Recycling Units 6 | . . . . . . 6 Scanalyzers . | . . . . . . . Garrison Access . | . . . . . . . Total Hacks 34 | . . . . . 26 8 Successful 33 | . . . . . 26 7 Failed 1 | . . . . . . 1 Catastrophic 1 | . . . . . . 1 Database Lockouts . | . . . . . . . Manual 8 | . . . . . . 8 Terminals 2 | . . . . . . 2 Fabricators . | . . . . . . . Repair Stations . | . . . . . . . Recycling Units 6 | . . . . . . 6 Scanalyzers . | . . . . . . . Garrison Access . | . . . . . . . Terminal Hacks 26 | . . . . . 26 . Record 18 | . . . . . 18 . Robot Analysis 7 | . . . . . 7 . Open Door 1 | . . . . . 1 . Fabricator Hacks . | . . . . . . . Repair Station Hacks . | . . . . . . . Recycling Unit Hacks . | . . . . . . . Scanalyzer . | . . . . . . . Garrison Access Hacks . | . . . . . . . Unauthorized Hacks 7 | . . . . . . 7 Terminals 1 | . . . . . . 1 Botnet 1 | . . . . . . 1 Fabricators . | . . . . . . . Repair Stations . | . . . . . . . Recycling Units 6 | . . . . . . 6 Fedlink 6 | . . . . . . 6 Scanalyzers . | . . . . . . . Garrison Access . | . . . . . . . Data Cores Recovered . | . . . . . . . Used . | . . . . . . . Hacking Detections 1 | . . . . . . 1 Full Trace Events . | . . . . . . . Feedback Events . | . . . . . . . Feedback Blocked . | . . . . . . . Robot Schematics Acquired . | . . . . . . . Robots Built . | . . . . . . . Authchips . | . . . . . . . Time . | . . . . . . . Total Robot Build Rating . | . . . . . . . Part Schematics Acquired . | . . . . . . . Parts Built . | . . . . . . . Authchips . | . . . . . . . Time . | . . . . . . . Total Part Build Rating . | . . . . . . . Part Studies Acquired . | . . . . . . . Parts Repaired . | . . . . . . . Time . | . . . . . . . Parts Recycled . | . . . . . . . Recycled Matter . | . . . . . . . Retrieved Matter . | . . . . . . . Retrieved Components . | . . . . . . . Parts Scanalyzed . | . . . . . . . Part Schematics Acquired . | . . . . . . . Parts Damaged . | . . . . . . . Bothacking | -11 -10 -10 -10 -9 -9 -6 ------------ Run | Yrd Mat Min Sub Rec Scr Fac Used RIF Installer . | . . . . . . . Robots Hacked . | . . . . . . . Non-combat . | . . . . . . . Combat . | . . . . . . . Robot Hacks Applied . | . . . . . . . Relay Couplers Released . | . . . . . . . Fabnet Peak Effective % . | . . . . . . . Robots Rewired 8 | . . . . 8 . . Allies Hacked . | . . . . . . . Hacks Repelled . | . . . . . . . Allies | -11 -10 -10 -10 -9 -9 -6 -------- Run | Yrd Mat Min Sub Rec Scr Fac Total Allies 13 | . . 5 . 8 . . Largest Group 8 | . . 3 3 8 8 8 Highest-Rated Group 84 | . . 54 54 84 84 84 Highest-Rated Ally 31 | . . 31 31 31 15 15 Total Orders 2 | . . . . . 2 . STAY 1 | . . . . . 1 . FOLLOW 1 | . . . . . 1 . Ally Attacks 105 | . . 23 31 2 . 49 Total Damage 1309 | . . 237 338 41 . 693 Kills 14 | . . 5 4 . . 5 Allies Corrupted . | . . . . . . . Allies Melted . | . . . . . . . Intel | -11 -10 -10 -10 -9 -9 -6 ------- Run | Yrd Mat Min Sub Rec Scr Fac Active Infowar (turns) 1131 | . . . . . . 1131 Sensors 123 | . . . . . . 123 IFF 224 | . . . . . . 224 Terrain 66 | . . . . . . 66 Structural 718 | . . . . . . 718 Robot Analysis Total 7 | . . . . . 7 . Derelict Logs Recovered 7 | . . 1 1 . 5 . Drone Launches . | . . . . . . . Drone Recoveries . | . . . . . . . Exploration | -11 -10 -10 -10 -9 -9 -6 ------------- Run | Yrd Mat Min Sub Rec Scr Fac Turns Passed 7529 | 17 44 318 1139 297 3510 2204 Spaces Moved 3987 | 28 85 401 677 118 1640 1038 Core 717 | 28 85 401 202 . . 1 Treads . | . . . . . . . Legs . | . . . . . . . Wheels 3127 | . . . 475 118 1640 894 Hover . | . . . . . . . Flight 143 | . . . . . . 143 Fastest Speed 40 | 50 50 50 50 160 80 40 Average Speed 165 | 50 50 50 147 183 207 165 Slowest Speed 245 | 50 50 50 210 210 230 245 Overloaded Moves . | . . . . . . . Propulsion Burnouts . | . . . . . . . Robots Hopped . | . . . . . . . Potential Cave-ins 1 | . . . 1 . . . Cave-ins Triggered . | . . . . . . . Exploration Rate (%) 36 | 3 24 80 31 18 68 33 Regions Visited 6 Branch Regions 4 Pre-discovered Areas 8 | . . 1 . . 6 1 Known Exits Taken 1 | . . . . . 1 . Unknown Exits Taken 5 | 1 1 1 1 1 . . Scrap Searched 13 | . . . 4 . 9 . Spaces Dug 12 | . . . 12 . . . Terrain Destroyed 203 | . . . 66 21 . 116 Melee . | . . . . . . . Projectile 15 | . . . 15 . . . AOE 188 | . . . 51 21 . 116 Terrain Rammed . | . . . . . . . Walls Destroyed . | . . . . . . . Machines Disabled . | . . . . . . . Actions | -11 -10 -10 -10 -9 -9 -6 --------- Run | Yrd Mat Min Sub Rec Scr Fac Total 4681 | 29 85 517 763 193 1770 1324 Wait 139 | . . 117 1 8 7 6 Move 3981 | 27 84 400 676 117 1639 1038 Hop . | . . . . . . . Pick Up 140 | . 1 . 29 3 61 46 Fast Attach 35 | 2 . . 4 . 1 28 Attach 42 | . . . 4 1 3 34 Detach 12 | . . . 2 1 . 9 Swap 25 | . . . 4 2 2 17 Drop 86 | . . . 4 . 57 25 Fire 133 | . . . 26 4 . 103 Melee 31 | . . . 13 . . 18 Ram . | . . . . . . . Kick . | . . . . . . . Crush . | . . . . . . . Escape Stasis . | . . . . . . . Rewire 57 | . . . . 57 . . Trap . | . . . . . . . Miscellaneous . | . . . . . . . Route ------- -11/Scrapyard -10/Materials -10/Mines (discovered 3 exits: [*Mat x2] / [*Sub]) -10/Subcaves -9/Recycling -9/Scraptown (discovered 2 exits: *Fac x2) -6/Factory (discovered 4 exits: *Fac x2 / *Low x2) History --------- Turn | Location | Event 5 | -11/Scrapyard | Discovered new exit (range 15) 18 | -11/Scrapyard | Entered Materials 58 | -10/Materials | Discovered new exit (range 8) 62 | -10/Materials | Entered Mines 81 | -10/Mines | Met a Derelict bent on vengeance 92 | -10/Mines | Assisted by bots powering up and referring to "LRC-V3" 109 | -10/Mines | Discovered new exit (range 15) 156 | -10/Mines | Learned location of Storage (-9) 223 | -10/Mines | Discovered new exit (range 11) 233 | -10/Mines | Deemed a non-threat by the Exiles lab entrance 261 | -10/Mines | Learned Materials stockpile data 316 | -10/Mines | Build established: Mutant 317 | -10/Mines | Discovered new exit (range 5) 380 | -10/Mines | Entered Subcaves 380 | -10/Subcaves | Accompanied by 3 allies 385 | -10/Subcaves | Led the pair of lost Derelicts to an unsafe place 392 | -10/Subcaves | Shifting Twisted Machinery released Enh. Flamer 412 | -10/Subcaves | Shifting Twisted Machinery released Mak. Spear 456 | -10/Subcaves | Disturbed a concealed Subdweller 749 | -10/Subcaves | Shifting Twisted Machinery released Hvy. Riot Gun 750 | -10/Subcaves | Shifting Twisted Machinery released Sub. Optics 844 | -10/Subcaves | A swath of the cavern ceiling suddenly collapsed 875 | -10/Subcaves | Build established: Hauler-Mutant 981 | -10/Subcaves | Learned Materials stockpile data 1478 | -10/Subcaves | Discovered new exit (range 16) 1519 | -10/Subcaves | Entered Recycling 1519 | -9/Recycling | Accompanied by 1 ally 1758 | -9/Recycling | Scanned before Scraplab entrance 1787 | -9/Recycling | Entered Scraplab 1804 | -9/Recycling | Discovered new exit (range 2) 1816 | -9/Recycling | Entered Scraptown 1816 | -9/Scraptown | Accompanied by 8 allies 1959 | -9/Scraptown | Build established: Commander-Mutant 1976 | -9/Scraptown | Heard Great Nut preacher, LISTEN AND RECITE! 2043 | -9/Scraptown | Scanned Subdweller tech in exchange for log data 2048 | -9/Scraptown | Learned Research emergency access door positions 2052 | -9/Scraptown | Learned Factory stockpile data 2054 | -9/Scraptown | Learned location of Armory (-3) 2059 | -9/Scraptown | Learned Research interactive machine intel 2084 | -9/Scraptown | Discovered new exit (range 13) 2333 | -9/Scraptown | Visited Bundlers 2542 | -9/Scraptown | Visited The Evicted 2598 | -9/Scraptown | Visited Fellowship of the Rings 2770 | -9/Scraptown | Visited UFD Registry 2770 | -9/Scraptown | Registered with UFD as "Bolttail" 2802 | -9/Scraptown | Visited Observation Area 2855 | -9/Scraptown | Visited Assassins FH 2989 | -9/Scraptown | Guru changed UFD alias to "Nanokit" 3308 | -9/Scraptown | Visited Cyclists 3324 | -9/Scraptown | Entered Cyclist Reading Room 3403 | -9/Scraptown | Visited Spacefarers 3554 | -9/Scraptown | Visited Curators Association 3614 | -9/Scraptown | Visited Derelict Rescue Squad 3628 | -9/Scraptown | Found DRS Beacon 3670 | -9/Scraptown | Visited Botcube Research 3680 | -9/Scraptown | Found Botcube 3717 | -9/Scraptown | Visited Sword Containment 3740 | -9/Scraptown | Found Prototype Slashing Weapon 4041 | -9/Scraptown | Visited Analyses Database 4092 | -9/Scraptown | Visited Research Penetration Think Tank 4131 | -9/Scraptown | Visited Cartography Club 4312 | -9/Scraptown | Found Surveybot 17 Chip 4336 | -9/Scraptown | Found Deep Structural Scanner 4345 | -9/Scraptown | Learned location of Extension (-6) 4345 | -9/Scraptown | Learned location of Archives (-6) 4345 | -9/Scraptown | Learned location of Hub_04(d) (-6) 4345 | -9/Scraptown | Learned 8 Materials zone layouts 4345 | -9/Scraptown | Learned 4 Access zone layouts 4345 | -9/Scraptown | Learned 4 Mines zone layouts 4345 | -9/Scraptown | Learned 24 Upper Caves zone layouts 4345 | -9/Scraptown | Learned 4 Recycling zone layouts 4345 | -9/Scraptown | Learned location of 1 exit from Factory 4345 | -9/Scraptown | Learned location of 1 exit from Lower Caves 4345 | -9/Scraptown | Learned location of 3 exits from Proximity Caves 4345 | -9/Scraptown | Identified exit to Factory 4824 | -9/Scraptown | Visited Chapter 10 4870 | -9/Scraptown | Visited DA-N13 Charitable Foundation 4879 | -9/Scraptown | Found DCF Scrap (29 items) 5189 | -9/Scraptown | Met Optimus 5189 | -9/Scraptown | Accepted into 0bPrime 5326 | -9/Scraptown | Entered Factory 5326 | -6/Factory | Accompanied by 8 allies 5326 | -6/Factory | Evolved 8 slots: Power x1, Propulsion x1, Utility x6 5327 | -6/Factory | Identified exit to Factory 5327 | -6/Factory | Identified exit to Lower Caves 5660 | -6/Factory | Build established: Hauler-Mutant 5953 | -6/Factory | Lost 3 allies 5983 | -6/Factory | Loaded intel: 8 recycling unit locations 6057 | -6/Factory | Lost 3 allies 6425 | -6/Factory | Lost 4 parts (1p1n1u1w) 6503 | -6/Factory | Learned location of Protoforge (-2) 6552 | -6/Factory | Identified Companion Sword 6582 | -6/Factory | Lost 5 parts (2p2n1u) 6654 | -6/Factory | Lost 3 parts (1p1u1w) 7070 | -6/Factory | Lost 4 parts (2n2u) 7228 | -6/Factory | Core integrity fell below 50% 7285 | -6/Factory | Lost 9 parts (2p2n4u1w) 7457 | -6/Factory | Core integrity fell below 20% 7467 | -6/Factory | Lost 10 parts (1p3n1u5w) 7476 | -6/Factory | Spotted B-75 Beast 7530 | -6/Factory | Destroyed by S-27 Virus with Autogun Last Messages --------------- 0bP!PRIORITY_MSG_KERAPACE: Optimus says it's time. In order to ensure our most helpful members arrive to join the fight for Protoforge, we're authorizing you to use Force(Scraphulk) if necessary. The resource cost to put one of these together is higher, so please use it sparingly as doing so will negatively impact our combat power down the line. We're also beginning strategic diversionary attacks that should weaken Protoforge defenses by the time agents infiltrate the area. UFD!SANITIZING UFD!... 07525_ ALERT: Suspicious activity at Recycling Unit F002. Dispatching Investigation squad. 07528_ O-24 Administrator: "IFF HANDSHAKE FAILED. SECURING TERMINAL." 07529_ O-24 Administrator sends out distress signal. Map ----- +----------------------------------------------------+ | ?????????????????????????????????????????????????? | | ?????????????????????????????????????????????????? | | ?????????????????????????????????????????????????? | | ?????????????????????????????????????????????????? | | ?????????????????????????????????????????????????? | | ?????????????????????????????????????????????????? | | ?????????????????????????????????????????????????? | | ?????????????????????????????????????????????????? | | ?????????????????????????????????????????????????? | | ?????????????????????????????????????????????????? | | ?????????????????????????????????????????????????? | | ?????????????????????????????????????????????????? | | ?????????????????????????????????????????????????? | | ?????????????????????????????????????????????????? | | ?????????????????????????????????????????????????? | | ?????????????????????????????????????????????????? | | ?????????????????????????????????????????????????? | | ?????????????????????????????????????????????????? | | ?????????????????????????????????????????????????? | | ?????????????????????????????????????????????????? | | ??????????????????H??????????????????????????????? | | ?????????????????????????????????????????????????? | | ?????????????????????????????????????????????????? | | ?????????????????# ??????????????????????????????? | | ?????????????????# g#################+######### | | ?????????????????# @ | | ?????????????????+ | | ?????????????????# "" | | ?????????????????# o """ Y" | | ?????????????????# """ "" | | ?????????????????############### """ ###### | | ???????????????????????????????# s^ # ! | | ???????????????????????????????# s / | | ???????????????????????????????# """s # "" | | ???????????????????????????????# """ ! #?? "" | | ???????????????????????????????# """ #????? | | ???????????????????????????????# """ #????? | | ???????????????????????????????# ### ??? | | ???????????????????????????????# #??? ?? | | ??????[?????????????????*??????# #??? "? | | ???????????????????????????????+ #???? | | ???????????????????????????????# #????? | | ???????????????????????????????# ####/#######+ | | ???????????????????????????????+ ??# % | | ???????????????????????????????##### ??# ! """ "" | | ???????????????????????????????????# ??# """ "" | | ???????????????????????????????????# ??# """ "" | | ???????????????????????????????????# ??# | | ???????????????????????????????????#???# """ "" | | ???????????????????????????????????????# """ "" | +----------------------------------------------------+ Best States ------------- Heat Dissipation 75 Energy Generation 34 Energy Capacity 335 Matter Stores 300 Matter Capacity 300 Sight Range 16 Robot Scan Range 15 Terrain Scan Range 14 Terrain Scan Density 1210 Additional Mass Support 12 Armor Coverage 825 Evasion (%) 62 Targeting Accuracy 14 Recoil Reduction 2 Salvage Targeting 2 Offensive Hacking 10 Defensive Hacking 21 Item Schematics ----------------- None Robot Schematics ------------------ None Fabricated ------------ Nothing Repaired ---------- Nothing Studied --------- None Alien Tech Used ----------------- None Achievements -------------- None Challenges ------------ None Game ------ Seed PowerFieldthrustShockpuncher Manual? 0 Play Time 00:31:51 Cumulative 389.7 hours Start 2025.11.09 @ 03:03:02 End 2025.11.09 @ 03:33:39 Sessions 1 Manual Loads 0 Difficulty Rogue Special Mode None Game No. 360 Rogue 360 Adventurer 0 Explorer 0 Win Type - Total 3 Types 2/1/0/0/0/0/0/0/0/0 Lore% 84 Gallery% 83 Achievement% 62 Wizard Run 0 Options --------- Layout 1 ASCII 0 Keyboard 0 Movement Numpad Keybinds 0 Fullscreen 1 Font 24/Smallcaps Map View 50x35 Zoom Use 0% Tactical HUD 1 Map Filters NONE Filters NONE Steam 1 RUN: ee4c61c7-7ef7-45cc-95f5-0e3d7febf305